fUST/lending_fUST_20250302
["ID","MTS","AMOUNT","RATE_DAILY","PERIOD"]
[354960817,1740846648819,-500.0,0.00027397,2]
[354960818,1740846648829,-1364.91,0.00027397,5]
[354960819,1740846648839,-1941.35,0.00027397,2]
[354960820,1740846648850,-5965.27,0.00027397,2]
[354960821,1740846648860,-500.0,0.00027397,2]
[354960822,1740846648871,-500.0,0.00027397,2]
[354960823,1740846648881,-500.0,0.00027397,2]
[354960824,1740846648891,-500.0,0.00027397,2]
[354960825,1740846648902,-1234.31,0.00027397,2]
[354960826,1740846648912,-601.8,0.00027397,2]
[354960827,1740846648922,-500.0,0.00027397,2]
[354960828,1740846648932,-508.07,0.00027397,2]
[354960829,1740846648942,-500.0,0.00027397,2]
[354960830,1740846648953,-1706.5,0.00027397,2]
[354960831,1740846648964,-501.40465957,0.00027397,2]
[354960832,1740846648975,-500.0,0.00027397,2]
[354960833,1740846648986,-503.7066998,0.00027397,2]
[354960834,1740846648997,-965.42,0.00027397,2]
[354960835,1740846649007,-500.0,0.00027397,2]
[354960836,1740846649018,-500.0,0.00027397,2]
[354960837,1740846649028,-500.0,0.00027397,2]
[354960838,1740846649039,-500.0,0.00027397,2]
[354960839,1740846649051,-554.76,0.00027397,2]
[354960840,1740846649062,-500.0,0.00027397,2]
[354960841,1740846649072,-744.39,0.00027397,2]
[354960842,1740846649083,-500.0,0.00027397,2]
[354960843,1740846649094,-2640.16,0.00027397,2]
[354960844,1740846649105,-500.0,0.00027397,2]
[354960845,1740846649115,-500.0,0.00027397,2]
[354960846,1740846649126,-1632.73,0.00027397,2]
[354960847,1740846649137,-1604.67,0.00027397,2]
[354960848,1740846649147,-500.0,0.00027397,2]
[354960849,1740846649157,-500.0,0.00027397,2]
[354960850,1740846649168,-500.0,0.00027397,2]
[354960851,1740846649178,-500.0,0.00027397,2]
[354960852,1740846649188,-500.0,0.00027397,2]
[354960853,1740846649198,-2039.5,0.00027397,2]
[354960854,1740846649209,-500.0,0.00027397,2]
[354960855,1740846649219,-500.0,0.00027397,2]
[354960856,1740846649229,-1755.93,0.00027397,2]
[354960857,1740846649239,-37902.13,0.00027397,2]
[354960858,1740846649250,-544.83,0.00027397,2]
[354960859,1740846649261,-500.0,0.00027397,2]
[354960860,1740846649275,-549.86,0.00027397,2]
[354960861,1740846649286,-500.0,0.00027397,2]
[354960862,1740846649297,-500.0,0.00027397,2]
[354960863,1740846649307,-500.0,0.00027397,2]
[354960864,1740846649318,-500.0,0.00027397,2]
[354960865,1740846649328,-500.0,0.00027397,2]
[354960866,1740846649339,-500.0,0.00027397,2]
[354960867,1740846649351,-500.0,0.00027397,2]
[354960868,1740846649362,-500.0,0.00027397,2]
[354960869,1740846649372,-375.79904528,0.00027397,2]
[354960870,1740846649382,-2076.91,0.00027397,2]
[354960871,1740846649392,-500.0,0.00027397,2]
[354960872,1740846649402,-1115.62,0.00027397,2]
[354960873,1740846649412,-500.0,0.00027397,2]
[354960874,1740846649423,-500.0,0.00027397,2]
[354960875,1740846649433,-500.0,0.00027397,2]
[354960876,1740846649443,-1679.32,0.00027397,2]
[354960877,1740846649453,-675.14,0.00027397,2]
[354960878,1740846649463,-500.0,0.00027397,2]
[354960879,1740846649473,-500.0,0.00027397,2]
[354960880,1740846649483,-500.0,0.00027397,2]
[354960881,1740846649494,-9907.16,0.00027397,2]
[354960882,1740846649505,-188.34246364,0.00027397,2]
[354960883,1740846649515,-1506.15,0.00027397,2]
[354960884,1740846649526,-500.0,0.00027397,2]
[354960885,1740846649536,-500.0,0.00027397,2]
[354960886,1740846649546,-500.0,0.00027397,2]
[354960887,1740846649556,-500.0,0.00027397,2]
[354960888,1740846649566,-961.2,0.00027397,2]
[354960889,1740846649576,-3365.36,0.00027397,2]
[354960890,1740846649586,-500.0,0.00027397,2]
[354960891,1740846649596,-500.0,0.00027397,2]
[354960892,1740846649605,-500.0,0.00027397,2]
[354960893,1740846649615,-500.0,0.00027397,2]
[354960894,1740846649625,-500.0,0.00027397,2]
[354960895,1740846649635,-2548.76,0.00027397,2]
[354960896,1740846649646,-969.28,0.00027397,2]
[354960897,1740846649655,-1341.27,0.00027397,2]
[354960898,1740846649666,-500.0,0.00027397,2]
[354960899,1740846649676,-500.0,0.00027397,2]
[354960900,1740846649686,-500.0,0.00027397,2]
[354960901,1740846649696,-7310.36,0.00027397,2]
[354960902,1740846649706,-671.34,0.00027397,2]
[354960903,1740846649716,-6312.85,0.00027397,2]
[354960904,1740846649726,-500.0,0.00027397,2]
[354960905,1740846649736,-1093.41,0.00027397,2]
[354960906,1740846649746,-500.0,0.00027397,2]
[354960907,1740846649756,-500.0,0.00027397,2]
[354960908,1740846649767,-527.4952183,0.00027397,2]
[354960909,1740846649777,-500.0,0.00027397,2]
[354960910,1740846649788,-756.65,0.00027397,2]
[354960911,1740846649798,-500.0,0.00027397,2]
[354960912,1740846649808,-500.0,0.00027397,2]
[354960913,1740846649818,-500.0,0.00027397,2]
[354960914,1740846649827,-500.0,0.00027397,2]
[354960915,1740846649837,-500.0,0.00027397,2]
[354960916,1740846649847,-521.8234435,0.00027397,2]
[354960917,1740846649857,-500.0,0.00027397,2]
[354960918,1740846649867,-500.0,0.00027397,2]
[354960919,1740846649877,-12457.78,0.00027397,2]
[354960920,1740846649887,-500.0,0.00027397,2]
[354960921,1740846649897,-500.0,0.00027397,2]
[354960922,1740846649908,-931.06,0.00027397,2]
[354960923,1740846649918,-2084.68,0.00027397,2]
[354960924,1740846649929,-500.0,0.00027397,2]
[354960925,1740846649939,-500.0,0.00027397,2]
[354960926,1740846649949,-500.0,0.00027397,2]
[354960927,1740846649960,-500.0,0.00027397,2]
[354960928,1740846649970,-500.0,0.00027397,2]
[354960929,1740846649981,-500.0,0.00027397,2]
[354960930,1740846649992,-500.0,0.00027397,2]
[354960931,1740846650002,-500.0,0.00027397,2]
[354960932,1740846650012,-500.0,0.00027397,2]
[354960933,1740846650022,-500.0,0.00027397,2]
[354960934,1740846650032,-4421.33,0.00027397,2]
[354960935,1740846650042,-500.0,0.00027397,2]
[354960936,1740846650053,-500.0,0.00027397,2]
[354960937,1740846650063,-950.58,0.00027397,2]
[354960938,1740846650073,-500.0,0.00027397,2]
[354960939,1740846650083,-500.0,0.00027397,2]
[354960940,1740846650093,-500.0,0.00027397,2]
[354960941,1740846650104,-1000.0,0.00027397,2]
[354960942,1740846650115,-500.0,0.00027397,2]
[354960943,1740846650125,-500.0,0.00027397,2]
[354960944,1740846650136,-500.0,0.00027397,2]
[354960945,1740846650147,-329.08,0.00027397,2]
[354960946,1740846650157,-965.82,0.00027397,2]
[354960947,1740846650167,-500.0,0.00027397,2]
[354960948,1740846650177,-500.0,0.00027397,2]
[354960949,1740846650187,-500.0,0.00027397,2]
[354960950,1740846650198,-500.0,0.00027397,2]
[354960951,1740846650208,-500.0,0.00027397,2]
[354960952,1740846650218,-501.6256182,0.00027397,2]
[354960953,1740846650228,-500.0,0.00027397,2]
[354960954,1740846650239,-1737.44,0.00027397,2]
[354960955,1740846650250,-500.0,0.00027397,2]
[354960956,1740846650263,-905.67,0.00027397,2]
[354960957,1740846650277,-500.0,0.00027397,2]
[354960958,1740846650287,-500.0,0.00027397,2]
[354960959,1740846650298,-721.23,0.00027397,2]
[354960960,1740846650308,-500.0,0.00027397,2]
[354960961,1740846650318,-500.0,0.00027397,2]
[354960962,1740846650328,-3500.42,0.00027397,2]
[354960963,1740846650339,-500.0,0.00027397,2]
[354960964,1740846650354,-500.0,0.00027397,2]
[354960965,1740846650371,-500.0,0.00027397,2]
[354960966,1740846650382,-212.69996757,0.00027397,2]
[354960967,1740846650392,-500.0,0.00027397,2]
[354960968,1740846650402,-500.0,0.00027397,2]
[354960969,1740846650414,-500.0,0.00027397,2]
[354960970,1740846650424,-692.49,0.00027397,2]
[354960971,1740846650434,-500.0,0.00027397,2]
[354960972,1740846650444,-500.0,0.00027397,2]
[354960973,1740846650455,-500.0,0.00027397,2]
[354960974,1740846650466,-500.0,0.00027397,2]
[354960975,1740846650478,-508.51,0.00027397,2]
[354960976,1740846650487,-14587.66,0.00027397,2]
[354960977,1740846650497,-400.0,0.00027397,60]
[354960978,1740846650507,-151.0,0.000274,15]
[354960979,1740846650517,-151.0,0.000275,11]
[354960980,1740846650527,-171.687723,0.00027549,2]
[354960981,1740846650538,-10778.87293515,0.00027571,2]
[354960982,1740846650552,-660.78,0.0002767,2]
[354960983,1740846650566,-660.78,0.0002767,2]
[354960984,1740846650577,-660.78,0.0002767,2]
[354960985,1740846650587,-660.78,0.0002767,2]
[354960986,1740846650826,-660.78,0.0002767,2]
[354960987,1740846650837,-660.78,0.0002767,2]
[354960988,1740846650848,-660.78,0.0002767,2]
[354960989,1740846650858,-660.78,0.0002767,2]
[354960990,1740846650868,-660.78,0.0002767,2]
[354960991,1740846650878,-660.79458588,0.0002767,2]
[354960992,1740846650888,-25000.0,0.00027671,5]
[354960993,1740846650898,-504.28648906,0.00027671,2]
[354960994,1740846650907,-500.0,0.00027671,2]
[354960995,1740846650917,-613.02843073,0.00027671,2]
[354960996,1740846650927,-500.0,0.00027671,2]
[354960997,1740846650937,-500.0,0.00027671,2]
[354960998,1740846650947,-500.0,0.00027671,2]
[354960999,1740846650957,-500.0,0.00027671,2]
[354961000,1740846650967,-500.0,0.00027671,2]
[354961001,1740846650976,-500.0,0.00027671,2]
[354961002,1740846650986,-503.42800636,0.00027671,2]
[354961003,1740846650996,-558.2776123,0.00027671,2]
[354961004,1740846651006,-500.0,0.00027671,2]
[354961005,1740846651016,-500.0,0.00027671,2]
[354961006,1740846651026,-500.0,0.00027671,2]
[354961007,1740846651036,-500.0,0.00027671,2]
[354961008,1740846651046,-206.08946926,0.00027671,2]
[354961009,1740846651056,-504.89299059,0.00027671,2]
[354961010,1740846651066,-500.0,0.00027671,2]
[354961011,1740846651076,-237.51748074,0.00027671,2]
[354961012,1740846651086,-500.0,0.00027671,2]
[354961013,1740846651096,-500.0,0.00027671,2]
[354961014,1740846651106,-503.29367334,0.00027671,2]
[354961015,1740846651116,-500.0,0.00027671,2]
[354961016,1740846651126,-500.0,0.00027671,2]
[354961017,1740846651135,-522.63359419,0.00027671,2]
[354961018,1740846651144,-299.0,0.00027671,2]
[354961019,1740846651154,-500.0,0.00027671,2]
[354961020,1740846651164,-415.31937611,0.00027671,2]
[354961021,1740846651174,-500.0,0.00027671,2]
[354961022,1740846651184,-500.0,0.00027671,2]
[354961023,1740846651194,-500.2014,0.00027671,2]
[354961024,1740846651203,-500.0,0.00027671,2]
[354961025,1740846651214,-500.0,0.00027671,2]
[354961026,1740846651224,-500.0,0.00027671,2]
[354961027,1740846651234,-500.0,0.00027671,2]
[354961028,1740846651244,-500.0,0.00027671,2]
[354961029,1740846651254,-500.0,0.00027671,2]
[354961030,1740846651266,-506.05253832,0.00027671,2]
[354961031,1740846651277,-517.12662447,0.00027671,2]
[354961032,1740846651287,-500.0,0.00027671,2]
[354961033,1740846651297,-1059.82,0.00027671,2]
[354961034,1740846651307,-510.64557622,0.00027671,2]
[354961035,1740846651316,-224.32975902,0.00027671,2]
[354961036,1740846651326,-500.0,0.00027671,2]
[354961037,1740846651346,-500.0,0.00027671,2]
[354961038,1740846651357,-520.03020786,0.00027671,2]
[354961039,1740846651367,-500.0,0.00027671,2]
[354961040,1740846651377,-500.0,0.00027671,2]
[354961041,1740846651387,-500.0,0.00027671,2]
[354961042,1740846651397,-500.0,0.00027671,2]
[354961043,1740846651407,-500.0,0.00027671,2]
[354961044,1740846651417,-500.0,0.00027671,2]
[354961045,1740846651426,-500.0,0.00027671,2]
[354961046,1740846651436,-500.0,0.00027671,2]
[354961047,1740846651446,-500.0,0.00027671,2]
[354961048,1740846651455,-500.0,0.00027671,2]
[354961049,1740846651465,-500.0,0.00027671,2]
[354961050,1740846651475,-500.0,0.00027671,2]
[354961051,1740846651485,-447.37599512,0.00027671,2]
[354961052,1740846651495,-509.37184616,0.00027671,2]
[354961053,1740846651505,-419.6617349,0.00027671,2]
[354961054,1740846651515,-500.0,0.00027671,2]
[354961055,1740846651524,-500.0,0.00027671,2]
[354961056,1740846651534,-500.0,0.00027671,2]
[354961057,1740846651544,-500.0,0.00027671,2]
[354961058,1740846651554,-500.0,0.00027671,2]
[354961059,1740846651564,-500.0,0.00027671,2]
[354961060,1740846651574,-500.0,0.00027671,2]
[354961061,1740846651584,-963.19,0.00027671,2]
[354961062,1740846651593,-500.0,0.00027671,2]
[354961063,1740846651603,-555.68,0.00027671,2]
[354961064,1740846651613,-500.0,0.00027671,2]
[354961065,1740846651623,-806.79,0.00027671,2]
[354961066,1740846651633,-500.0,0.00027671,2]
[354961067,1740846651642,-500.0,0.00027671,2]
[354961068,1740846651652,-500.0,0.00027671,2]
[354961069,1740846651662,-506.40713011,0.00027671,2]
[354961070,1740846651672,-228.35587799,0.00027671,2]
[354961071,1740846651682,-500.0,0.00027671,2]
[354961072,1740846651691,-500.0,0.00027671,2]
[354961073,1740846651701,-500.0,0.00027671,2]
[354961074,1740846651710,-500.0,0.00027671,2]
[354961075,1740846651720,-500.0,0.00027671,2]
[354961076,1740846651730,-500.0,0.00027671,2]
[354961077,1740846651739,-500.0,0.00027671,2]
[354961078,1740846651749,-500.0,0.00027671,2]
[354961079,1740846651759,-500.0,0.00027671,2]
[354961080,1740846651768,-500.0,0.00027671,2]
[354961081,1740846651778,-500.0,0.00027671,2]
[354961082,1740846651787,-500.0,0.00027671,2]
[354961083,1740846651798,-500.0,0.00027671,2]
[354961084,1740846651807,-500.0,0.00027671,2]
[354961085,1740846651817,-200.0,0.00027671,2]
[354961086,1740846651827,-500.0,0.00027671,2]
[354961087,1740846651837,-500.0,0.00027671,2]
[354961088,1740846651846,-500.0,0.00027671,2]
[354961089,1740846651856,-500.0,0.00027671,2]
[354961090,1740846651866,-513.87068856,0.00027671,2]
[354961091,1740846651876,-500.0,0.00027671,2]
[354961092,1740846651886,-847.9,0.00027671,2]
[354961093,1740846651896,-500.0,0.00027671,2]
[354961094,1740846651905,-500.0,0.00027671,2]
[354961095,1740846651915,-509.27511864,0.00027671,2]
[354961096,1740846651925,-500.0,0.00027671,2]
[354961097,1740846651935,-505.98815368,0.00027671,2]
[354961098,1740846651945,-500.0,0.00027671,2]
[354961099,1740846651955,-625.52,0.00027671,2]
[354961100,1740846651964,-500.0,0.00027671,2]
[354961101,1740846651974,-500.0,0.00027671,2]
[354961102,1740846651984,-500.0,0.00027671,2]
[354961103,1740846651994,-500.0,0.00027671,2]
[354961104,1740846652004,-500.0,0.00027671,2]
[354961105,1740846652014,-752.35,0.00027671,2]
[354961106,1740846652024,-500.0,0.00027671,2]
[354961107,1740846652035,-500.0,0.00027671,2]
[354961108,1740846652044,-500.0,0.00027671,2]
[354961109,1740846652056,-500.0,0.00027671,2]
[354961110,1740846652067,-500.0,0.00027671,2]
[354961111,1740846652077,-500.0,0.00027671,2]
[354961112,1740846652088,-500.0,0.00027671,2]
[354961113,1740846652098,-587.18,0.00027671,2]
[354961114,1740846652107,-500.0,0.00027671,2]
[354961115,1740846652117,-500.0,0.00027671,2]
[354961116,1740846652127,-500.0,0.00027671,2]
[354961117,1740846652136,-500.0,0.00027671,2]
[354961118,1740846652146,-500.0,0.00027671,2]
[354961119,1740846652156,-716.58,0.00027671,2]
[354961120,1740846652167,-500.0,0.00027671,2]
[354961121,1740846652176,-500.0,0.00027671,2]
[354961122,1740846652186,-500.0,0.00027671,2]
[354961123,1740846652196,-500.0,0.00027671,2]
[354961124,1740846652206,-500.0,0.00027671,2]
[354961125,1740846652216,-500.0,0.00027671,2]
[354961126,1740846652226,-500.0,0.00027671,2]
[354961127,1740846652236,-551.80569978,0.00027671,2]
[354961128,1740846652246,-592.03,0.00027671,2]
[354961129,1740846652256,-500.0,0.00027671,2]
[354961130,1740846652268,-500.0,0.00027671,2]
[354961131,1740846652278,-500.0,0.00027671,2]
[354961132,1740846652288,-500.0,0.00027671,2]
[354961133,1740846652299,-500.0,0.00027671,2]
[354961134,1740846652309,-193.71383325,0.00027671,2]
[354961135,1740846652319,-500.0,0.00027671,2]
[354961136,1740846652329,-500.0,0.00027671,2]
[354961137,1740846652339,-500.0,0.00027671,2]
[354961138,1740846652351,-500.0,0.00027671,2]
[354961139,1740846652361,-556.52,0.00027671,2]
[354961140,1740846652370,-500.0,0.00027671,2]
[354961141,1740846652380,-500.0,0.00027671,2]
[354961142,1740846652390,-1034.1,0.00027671,2]
[354961143,1740846652400,-590.98,0.00027671,2]
[354961144,1740846652410,-500.0,0.00027671,2]
[354961145,1740846652420,-500.0,0.00027671,2]
[354961146,1740846652430,-459.074043,0.00027671,2]
[354961147,1740846652440,-500.0,0.00027671,2]
[354961148,1740846652449,-500.0,0.00027671,2]
[354961149,1740846652459,-712.89,0.00027671,2]
[354961150,1740846652469,-500.0,0.00027671,2]
[354961151,1740846652479,-500.0,0.00027671,2]
[354961152,1740846652488,-573.66,0.00027671,2]
[354961153,1740846652498,-500.0,0.00027671,2]
[354961154,1740846652508,-500.0,0.00027671,2]
[354961155,1740846652523,-464.05927202,0.00027671,2]
[354961156,1740846652533,-511.05097749,0.00027671,2]
[354961157,1740846652543,-1089.04,0.00027671,2]
[354961158,1740846652553,-502.32249601,0.00027671,2]
[354961159,1740846652563,-500.62079031,0.00027671,2]
[354961160,1740846652573,-500.0,0.00027671,2]
[354961161,1740846652583,-500.0,0.00027671,2]
[354961162,1740846652593,-1123.8,0.00027671,2]
[354961163,1740846652603,-444.73352121,0.00027671,2]
[354961164,1740846652613,-500.0,0.00027671,2]
[354961165,1740846652623,-500.0,0.00027671,2]
[354961166,1740846652633,-500.0,0.00027671,2]
[354961167,1740846652643,-500.0,0.00027671,2]
[354961168,1740846652653,-500.0,0.00027671,2]
[354961169,1740846652663,-500.0,0.00027671,2]
[354961170,1740846652673,-500.0,0.00027671,2]
[354961171,1740846652683,-500.0,0.00027671,2]
[354961172,1740846652692,-619.73,0.00027671,2]
[354961173,1740846652702,-500.0,0.00027671,2]
[354961174,1740846652712,-614.57,0.00027671,2]
[354961175,1740846652721,-500.0,0.00027671,2]
[354961176,1740846652731,-500.0,0.00027671,2]
[354961177,1740846652740,-500.0,0.00027671,2]
[354961178,1740846652751,-833.6,0.00027671,2]
[354961179,1740846652762,-500.0,0.00027671,2]
[354961180,1740846652771,-500.0,0.00027671,2]
[354961181,1740846652781,-500.0,0.00027671,2]
[354961182,1740846652791,-500.0,0.00027671,2]
[354961183,1740846652800,-500.0,0.00027671,2]
[354961184,1740846652810,-500.0,0.00027671,2]
[354961185,1740846652819,-500.0,0.00027671,2]
[354961186,1740846652829,-500.0,0.00027671,2]
[354961187,1740846652839,-1025.72,0.00027671,2]
[354961188,1740846652848,-500.0,0.00027671,2]
[354961189,1740846652859,-500.0,0.00027671,2]
[354961190,1740846652868,-500.0,0.00027671,2]
[354961191,1740846652878,-500.0,0.00027671,2]
[354961192,1740846652888,-1233.37,0.00027671,2]
[354961193,1740846652897,-500.0,0.00027671,2]
[354961194,1740846652907,-500.0,0.00027671,2]
[354961195,1740846652916,-500.0,0.00027671,2]
[354961196,1740846652926,-500.0,0.00027671,2]
[354961197,1740846652935,-500.0,0.00027671,2]
[354961198,1740846652945,-500.0,0.00027671,2]
[354961199,1740846652954,-706.29,0.00027671,2]
[354961200,1740846652964,-500.0,0.00027671,2]
[354961201,1740846652974,-500.0,0.00027671,2]
[354961202,1740846652983,-500.0,0.00027671,2]
[354961203,1740846652993,-500.0,0.00027671,2]
[354961204,1740846653003,-500.0,0.00027671,2]
[354961205,1740846653013,-586.22,0.00027671,2]
[354961206,1740846653023,-500.0,0.00027671,2]
[354961207,1740846653033,-616.87498064,0.00027671,2]
[354961208,1740846653043,-306.26038059,0.00027671,2]
[354961209,1740846653054,-500.0,0.00027671,2]
[354961210,1740846653063,-502.58,0.00027671,2]
[354961211,1740846653073,-500.0,0.00027671,2]
[354961212,1740846653083,-886.17,0.00027671,2]
[354961213,1740846653092,-500.0,0.00027671,2]
[354961214,1740846653102,-697.28,0.00027671,2]
[354961215,1740846653112,-500.0,0.00027671,2]
[354961216,1740846653121,-500.0,0.00027671,2]
[354961217,1740846653131,-500.0,0.00027671,2]
[354961218,1740846653140,-500.0,0.00027671,2]
[354961219,1740846653150,-1318.09,0.00027671,2]
[354961220,1740846653160,-500.0,0.00027671,2]
[354961221,1740846653170,-1492.38,0.00027671,2]
[354961222,1740846653179,-500.0,0.00027671,2]
[354961223,1740846653190,-500.0,0.00027671,2]
[354961224,1740846653273,-500.0,0.00027671,2]
[354961225,1740846653284,-500.0,0.00027671,2]
[354961226,1740846653294,-978.04,0.00027671,2]
[354961227,1740846653305,-500.0,0.00027671,2]
[354961228,1740846653315,-500.0,0.00027671,2]
[354961229,1740846653325,-500.0,0.00027671,2]
[354961230,1740846653335,-500.0,0.00027671,2]
[354961231,1740846653347,-506.93336145,0.00027671,2]
[354961232,1740846653357,-500.0,0.00027671,2]
[354961233,1740846653367,-500.0,0.00027671,2]
[354961234,1740846653376,-500.0,0.00027671,2]
[354961235,1740846653385,-500.0,0.00027671,2]
[354961236,1740846653395,-500.0,0.00027671,2]
[354961237,1740846653404,-500.0,0.00027671,2]
[354961238,1740846653414,-500.0,0.00027671,2]
[354961239,1740846653424,-1773.76,0.00027671,2]
[354961240,1740846653434,-500.0,0.00027671,2]
[354961241,1740846653443,-500.0,0.00027671,2]
[354961242,1740846653452,-500.0,0.00027671,2]
[354961243,1740846653462,-741.16,0.00027671,2]
[354961244,1740846653471,-500.0,0.00027671,2]
[354961245,1740846653482,-500.0,0.00027671,2]
[354961246,1740846653492,-500.0,0.00027671,2]
[354961247,1740846653501,-500.0,0.00027671,2]
[354961248,1740846653511,-500.0,0.00027671,2]
[354961249,1740846653521,-500.0,0.00027671,2]
[354961250,1740846653530,-500.0,0.00027671,2]
[354961251,1740846653539,-500.0,0.00027671,2]
[354961252,1740846653549,-500.0,0.00027671,2]
[354961253,1740846653559,-500.0,0.00027671,2]
[354961254,1740846653568,-500.0,0.00027671,2]
[354961255,1740846653578,-500.0,0.00027671,2]
[354961256,1740846653587,-1842.14,0.00027671,2]
[354961257,1740846653597,-500.0,0.00027671,2]
[354961258,1740846653607,-500.0,0.00027671,2]
[354961259,1740846653617,-913.9,0.00027671,2]
[354961260,1740846653627,-514.16259709,0.00027671,2]
[354961261,1740846653636,-500.0,0.00027671,2]
[354961262,1740846653646,-500.0,0.00027671,2]
[354961263,1740846653656,-506.00756563,0.00027671,2]
[354961264,1740846653666,-500.0,0.00027671,2]
[354961265,1740846653676,-359.70484199,0.00027671,2]
[354961266,1740846653685,-500.0,0.00027671,2]
[354961267,1740846653695,-500.0,0.00027671,2]
[354961268,1740846653704,-619.14,0.00027671,2]
[354961269,1740846653714,-500.0,0.00027671,2]
[354961270,1740846653723,-500.0,0.00027671,2]
[354961271,1740846653733,-500.0,0.00027671,2]
[354961272,1740846653743,-500.0,0.00027671,2]
[354961273,1740846653752,-500.0,0.00027671,2]
[354961274,1740846653762,-500.0,0.00027671,2]
[354961275,1740846653772,-500.0,0.00027671,2]
[354961276,1740846653781,-500.0,0.00027671,2]
[354961277,1740846653791,-500.0,0.00027671,2]
[354961278,1740846653801,-500.0,0.00027671,2]
[354961279,1740846653810,-500.0,0.00027671,2]
[354961280,1740846653820,-500.0,0.00027671,2]
[354961281,1740846653830,-560.42,0.00027671,2]
[354961282,1740846653839,-500.0,0.00027671,2]
[354961283,1740846653849,-500.0,0.00027671,2]
[354961284,1740846653859,-1240.95,0.00027671,2]
[354961285,1740846653868,-500.0,0.00027671,2]
[354961286,1740846653878,-500.0,0.00027671,2]
[354961287,1740846653887,-580.95329574,0.00027671,2]
[354961288,1740846653897,-500.0,0.00027671,2]
[354961289,1740846653906,-599.45,0.00027671,2]
[354961290,1740846653915,-545.06,0.00027671,2]
[354961291,1740846653925,-500.0,0.00027671,2]
[354961292,1740846653935,-639.85252926,0.00027671,2]
[354961293,1740846653944,-738.3,0.00027671,2]
[354961294,1740846653954,-1708.18,0.00027671,2]
[354961295,1740846653964,-500.0,0.00027671,2]
[354961296,1740846653974,-540.28,0.00027671,2]
[354961297,1740846653984,-500.0,0.00027671,2]
[354961298,1740846653994,-500.0,0.00027671,2]
[354961299,1740846654003,-500.0,0.00027671,2]
[354961300,1740846654013,-1546.57,0.00027671,2]
[354961301,1740846654023,-247.28111052,0.00027671,2]
[354961302,1740846654032,-777.53,0.00027671,2]
[354961303,1740846654042,-714.07,0.00027671,2]
[354961304,1740846654051,-986.59,0.00027671,2]
[354961305,1740846654061,-500.0,0.00027671,2]
[354961306,1740846654070,-500.0,0.00027671,2]
[354961307,1740846654080,-500.0,0.00027671,2]
[354961308,1740846654089,-500.0,0.00027671,2]
[354961309,1740846654099,-500.0,0.00027671,2]
[354961310,1740846654108,-730.1,0.00027671,2]
[354961311,1740846654117,-500.0,0.00027671,2]
[354961312,1740846654127,-500.0,0.00027671,2]
[354961313,1740846654136,-500.0,0.00027671,2]
[354961314,1740846654147,-500.0,0.00027671,2]
[354961315,1740846654157,-1000.0,0.00027671,2]
[354961316,1740846654167,-500.0,0.00027671,2]